Workbook

Sheet Opening
B3: Model Tariefberekening
C5: U kunt op afzonderlijke werkbladen een tarief berekenen voor een:
D6: 1. Trekker
D7: 2. Werktuig
D8: 3. Zelfrijder
C9: Verder kunt u op het volgende werkblad een index berekenen:
D10: 4. Index
C11: Klik op het betreffende woord om naar dit werkblad te gaan.
C13: Algemene toelichting:
C35: Dit model is een uitgave van: | G35: CUMELA Nederland
G36: Postbus 1156
G37: 3680 BD NIJKERK
G38: tel. | H38: (033) 247 49 00
G39: fax | H39: (033) 247 49 01
G40: e-mail | H40: info@cumela.nl
G41: website | H41: www.cumela.nl

Sheet Trekker
B2: Trekker:
B3: Omschrijving | C3: Uitgangspunten
B4: vermogen | C4: 120 | D4: kW of in PK: | G4: =IF(C4>0,C4,ROUND(E4*0.735499,0)) & " kW" -> 120 kW
B5: vervangingswaarde | C5: € 100,000 | G5: =C5 -> € 100,000
B6: restwaarde in % of EUR | C6: 40.0% | D6: of in € | G6: =IF(C6>0,C6*G5,E6) -> € 40,000
B7: gebruiksuren | C7: 1,000 | D7: uur
B8: afschrijving in % of jaren | D8: van VW of | E8: 5 | F8: jaar | G8: =IF(C8+E8=0,"",IF(C8>0,ROUND((G5-G6)/G9,1),E8)&" jaar") -> 5 jaar
B9: afschrijving / jaar | G9: =IF(C8>0,C8*G5,IF(E8=0,"",(G5-G6)/E8)) -> € 12,000
C10: In procenten | D10: of | E10: in euro's
B11: rente | C11: 5.0% | D11: van VW | G11: =C11*((G5+G6)/2) -> € 3,500
B12: reparatie en onderhoud | C12: 3.0% | D12: van VW | G12: =IF(C12>0,C12*$G$5,E12) -> € 3,000
B13: arbeid eigen onderhoud | C13: 1.0% | D13: van VW | G13: =IF(C13>0,C13*$G$5,E13) -> € 1,000
B14: onroerend goed | C14: 0.50% | D14: van VW | G14: =IF(C14>0,C14*$G$5,E14) -> € 500
B15: verzekering | C15: 1.5% | D15: van VW | G15: =IF(C15>0,C15*$G$5,E15) -> € 1,500
B16: algemene kosten | C16: 2.0% | D16: van VW | G16: =IF(C16>0,C16*$G$5,E16) -> € 2,000
B18: totaal per jaar | G18: =SUM(G9:G16) -> € 23,500
B20: kosten per uur | G20: =IF(C7=0,0,G18/C7) -> € 23.50 | J20: =((G20-((C11-C38)*((1+G6/G5)/2)*C5)/C7)/(1+C37)) -> € 20.00000
D21: Brandstofgebruik
D22: berekend | E22: eigen waarde
B23: belastingspercentage of liter per uur | D23: =(C23*IF(C4>0,C4,E4*0.735499)/3.6666667) -> 0.0 | E23: 35.0 | F23: liter
B24: brandstof prijs | C24: € 0.86 | D24: / liter
B25: smeermiddelen | C25: 1% | D25: toeslag
B26: brandstof + smeermid. | G26: =IF(E23=0,D23*C24*(1+C25),E23*C24*(1+C25)) -> € 30.40 | J26: =(G26/(C24/C39)) -> 
B28: arbeidskosten | C28: € 30.00
B29: bedrijfsleidingverg. | C29: 1.0% | G29: =C28*(1+C29) -> € 30.30 | J29: =(G29/(1+C40)) -> 30.3
B30: Subtotaal | G30: =G20+G26+G29 -> € 84.20
B31: bedrijfsrisico | C31: 10.0% | G31: =C31*G30 -> € 8.42
B33: tarief | G33: =G30+G31 -> € 92.62 | J33: =((J20+J26+J29)*(1+C31)) -> 
B35: Afgerond tarief per uur: | G35: =ROUND(G33,0) -> € 93.00
B36: Index berekenen? | C36: ja | G36: =IF(ISBLANK(E37),"","Index") -> 
B37: =IF(C36="Ja","Prijsstijging machine","") -> Prijsstijging machine
B38: =IF(AND(C37<>"",C36="Ja"),"Rentepercentage vorig jaar","") -> 
B39: =IF(AND(C38<>"",C36="ja"),"Brandstofprijs vorig jaar","") -> 
B40: =IF(AND(C39<>"",C36="ja"),"Index arbeidskosten","") -> 
B41: =IF(AND(C40<>"",C36="ja"),CONCATENATE("Berekende indexcijfer voor de ",LOWER($C$2),":"),"") ->  | G41: =IF(AND(C40<>"",C36="ja"),(G33/((((G20-((C11-C38)*((1+G6/G5)/2)*C5)/C7)/(1+C37))+(G26/(C24/C39))+(G29/(1+C40)))*(1+C31)))-1,"") -> 
B42: Toelichting:

Sheet Werktuig
B2: Werktuig:
B3: Omschrijving | C3: Uitgangspunten
B5: vervangingswaarde | C5: € 25,000.00 | G5: =C5 -> € 25,000
B6: restwaarde in % of EUR | C6: 10.0% | D6: of in € | G6: =IF(C6>0,C6*G5,E6) -> € 2,500
B7: gebruiksuren | C7: 250 | D7: uur
B8: afschrijvings in % of jaren | C8: 10.0% | D8: van VW of | F8: jaar | G8: =IF(C8+E8=0,"",IF(C8>0,ROUND((G5-G6)/G9,1),E8)&" jaar") -> 9 jaar
B9: afschrijving / jaar | G9: =IF(C8>0,C8*G5,IF(E8=0,"",(G5-G6)/E8)) -> € 2,500
C10: In procenten | D10: of | E10: in euro's
B11: rente | C11: 4.0% | G11: =C11*((G5+G6)/2) -> € 550
B12: reparatie en onderhoud | C12: 3.0% | D12: van VW | G12: =IF(C12>0,C12*$G$5,E12) -> € 750
B13: arbeid eigen onderhoud | C13: 3.0% | D13: van VW | G13: =IF(C13>0,C13*$G$5,E13) -> € 750
B14: onroerend goed | C14: 3.0% | D14: van VW | G14: =IF(C14>0,C14*$G$5,E14) -> € 750
B15: verzekering | C15: 1.0% | D15: van VW | G15: =IF(C15>0,C15*$G$5,E15) -> € 250
B16: algemene kosten | C16: 1.0% | D16: van VW | G16: =IF(C16>0,C16*$G$5,E16) -> € 250
B18: totaal per jaar | G18: =SUM(G9:G16) -> € 5,800
B20: kosten per uur | G20: =IF(C7=0,0,G18/C7) -> 23.20
B21: bedrijfsrisico | C21: 5.0% | G21: =G20*C21 -> 1.16
B22: Tarief exclusief trekker | G22: =G20+G21 -> 24.36
B24: ="Tarief "&IF(AND(C24=0,Trekker!C2>"0"),Trekker!C2,"trekker") -> Tarief trekker | G24: =IF(C5="",0,IF(ISBLANK(C24),Trekker!G33,C24)) -> 92.62
B26: Totaal tarief: | G26: =G22+G24 -> 116.98
B28: Afgerond tarief per uur: | G28: =ROUND(G26,0) -> € 117.00
B29: Optie om een ander eenheid of mengtarief te hanteren.
B30: Andere eenheid? | C30: nee | E30: eigen tarief | G30: voorstel
B31: =IF(OR(C30="Mengtarief",C30="JA"),"eenheid"," ") ->  | D31: =IF(C30="mengtarief","tarief / uur:","") ->  | G31: =IF(C30="Mengtarief",ROUND((Trekker!G26+Trekker!G29)*(1+Trekker!C29)*(1+Trekker!C31),0),"") -> 
B32: =IF(AND(C31>0,OR(C30="JA",C30="Mengtarief")),"capaciteit"," ") ->  | D32: =IF(B32="capaciteit",C31&" / uur","") -> 
B33: =IF(AND(C32>0,C30="JA"),"tarief per "&C31," ") ->  | C33: =IF(AND(B32="Capaciteit",C32>0),IF(IF(C30="Ja",G26/C32,IF(AND(C30="mengtarief",E31=""),(G26-G31)/C32,(G26-E31)/C32))<10,ROUND(IF(C30="Ja",G26/C32,IF(AND(C30="mengtarief",E31=""),(G26-G31)/C32,(G26-E31)/C32)),1),ROUND(IF(C30="Ja",G26/C32,IF(AND(C30="mengtarief",E31=""),(G26-G31)/C32,(G26-E31)/C32)),0)),"") ->  | D33: =IF(AND(C32>0,C30="JA"),"per "&C31,IF(AND(C32>0,C30="Mengtarief"),"per "&C31&" + € "&IF(E31="",G31,E31)&" per uur","")) -> 
B34: Index berekenen? | C34: ja | G34: =IF(ISBLANK(E35),"","Index") -> 
B35: =IF(C34="Ja","Prijsstijging werktuig","") -> Prijsstijging werktuig
B36: =IF(AND(C35<>"",C34="Ja"),"Rentepercentage vorig jaar","") -> 
B37: =IF(AND(C36<>"",C34="ja"),CONCATENATE("Berekende indexcijfer voor de ",LOWER(C2),":"),"") ->  | G37: =IF(AND(C34="Ja",C36=""),"",(G20/((G20-((C11-C36)*((1+G6/G5)/2)*C5)/C7)/(1+C35)))-1) -> 
B38: =IF(B37>"0","Prijsstijging trekker","") ->  | G38: =IF(C34="ja",IF(C38>0,C38,Trekker!G41),"") -> 
B39: =IF(AND(B38>"a",G38<>""),"Totale prijsindex","") ->  | G39: =IF(B39>"a",((G22/G28)*G37)+((G24/G28)*G38),"") -> 
B40: Toelichting:
B87: ja
B88: nee
B89: mengtarief

Sheet Zelfrijder
B2: Zelfrijder:
B3: Omschrijving | C3: Uitgangspunten
B4: vermogen | C4: 250 | D4: kW of in PK: | G4: =IF(C4>0,C4,ROUND(E4*0.735499,0)) & " kW" -> 250 kW
B5: vervangingswaarde | C5: € 100,000 | G5: =C5 -> € 100,000
B6: Restwaarde in % of EUR | D6: of in € | E6: 25,000 | G6: =IF(C6>0,C6*G5,E6) -> € 25,000
B7: gebruiksuren | C7: 350 | D7: uur
B8: afschrijving in % of jaren | C8: 15.0% | D8: van VW of | F8: jaar | G8: =IF(C8+E8=0,"",IF(C8>0,ROUND((G5-G6)/G9,1),E8)&" jaar") -> 5 jaar
B9: afschrijving / jaar | G9: =IF(C8>0,C8*G5,IF(E8=0,"",(G5-G6)/E8)) -> € 15,000
C10: In procenten | D10: of | E10: in euro's
B11: rente | C11: 4.0% | D11: van VW | G11: =C11*((G5+G6)/2) -> € 2,500
B12: reparatie en onderhoud | C12: 4.0% | D12: van VW | G12: =IF(C12>0,C12*$G$5,E12) -> € 4,000
B13: arbeid eigen onderhoud | C13: 2.0% | D13: van VW | G13: =IF(C13>0,C13*$G$5,E13) -> € 2,000
B14: onroerend goed | C14: 2.0% | D14: van VW | G14: =IF(C14>0,C14*$G$5,E14) -> € 2,000
B15: verzekering | C15: 2.0% | D15: van VW | G15: =IF(C15>0,C15*$G$5,E15) -> € 2,000
B16: algemene kosten | C16: 2.0% | D16: van VW | G16: =IF(C16>0,C16*$G$5,E16) -> € 2,000
B18: totaal per jaar | G18: =SUM(G9:G16) -> € 29,500
B20: kosten per uur | G20: =IF(C7=0,0,G18/C7) -> 84.29
D21: Brandstofgebruik
D22: berekend | E22: eigen waarde
B23: belastingspercentage of liters per uur | C23: 80% | D23: =(C23*IF(C4>0,C4,E4*0.735499)/3.6666667) -> 54.5 | F23: liter
B24: brandstof prijs | C24: € 1.20 | D24: / liter
B25: smeermiddelen | C25: 3%
B26: brandstof + smeermid. | G26: =IF(E23=0,D23*C24*(1+C25),E23*C24*(1+C25)) -> 67.09
B28: arbeidskosten | C28: € 60.00
B29: bedrijfsleidingverg. | C29: 10.0% | G29: =C28*(1+C29) -> 66.00
B30: Subtotaal 2: | G30: =G20+G26+G29 -> 217.38
B31: bedrijfsrisico | C31: 10.0% | G31: =C31*G30 -> 21.74
B33: tarief | G33: =G30+G31 -> 239.11
B35: Afgerond tarief per uur: | G35: =ROUND(G33,0) -> € 239.00
B36: Optie om een ander eenheid of mengtarief te hanteren.
B37: Andere eenheid? | C37: ja | E37: eigen tarief | G37: voorstel
B38: =IF(OR(C37="Mengtarief",C37="JA"),"eenheid"," ") -> eenheid | C38: ha | D38: =IF(C37="mengtarief","tarief / uur:","") ->  | G38: =IF(C37="Mengtarief",ROUND((G29+G26)*(1+C29)*(1+C31),0),"") -> 
B39: =IF(AND(C38>0,OR(C37="JA",C37="Mengtarief")),"capaciteit"," ") -> capaciteit | D39: =IF(B39="capaciteit",C38&" / uur"," ") -> ha / uur
B40: =IF(AND(C39>0,C37="JA"),"tarief per "&C38," ") ->  | C40: =IF(AND(B39="Capaciteit",C39>0),IF(IF(C37="Ja",G33/C39,IF(AND(C37="mengtarief",E38=""),(G33-G38)/C39,(G33-E38)/C39))<10,ROUND(IF(C37="Ja",G33/C39,IF(AND(C37="mengtarief",E38=""),(G33-G38)/C39,(G33-E38)/C39)),1),ROUND(IF(C37="Ja",G33/C39,IF(AND(C37="mengtarief",E38=""),(G33-G38)/C39,(G33-E38)/C39)),0)),"") ->  | D40: =IF(AND(C39>0,C37="JA"),"per "&C38,IF(AND(C39>0,C37="Mengtarief"),"per "&C38&" + € "&IF(E38="",G38,E38)&" per uur","")) -> 
B41: Index berekenen? | C41: ja | G41: =IF(ISBLANK(E42),"","Index") -> 
B42: =IF(C41="Ja","Prijsstijging machine","") -> Prijsstijging machine
B43: =IF(AND(C42<>"",C41="Ja"),"Rentepercentage vorig jaar","") -> 
B44: =IF(AND(C43<>"",C41="ja"),"Brandstofprijs vorig jaar","") -> 
B45: =IF(AND(C44<>"",C41="ja"),"Index arbeidskosten","") -> 
B46: =IF(AND(C45<>"",C41="ja"),CONCATENATE("Berekende indexcijfer voor de ",LOWER(C2),":"),"") ->  | G46: =IF(C45="","",(G33/((((G20-((C11-C43)*((1+G6/G5)/2)*C5)/C7)/(1+C42))+(G26/(C24/C44))+(G29/(1+C45)))*(1+C31)))-1) -> 
B47: Toelichting:

Sheet Index
B2: Indexberekening
B3: Omschrijving:
C4: Tarief | D4: Aandeel in de kosten | E4: Kosten index | F4: Prijs index
B5: Tarief vorig jaar:
B6: Arbeidskosten | D6: =IF($C$5>0,C6/$C$5,"") ->  | F6: =IF(D6="","",D6*E6) -> 
B7: Brandstof | D7: =IF($C$5>0,C7/$C$5,"") ->  | F7: =IF(D7="","",D7*E7) -> 
B8: Hulpstoffen | D8: =IF($C$5>0,C8/$C$5,"") ->  | F8: =IF(D8="","",D8*E8) -> 
B9: Wijziging rentepercentage
B10: Vervangingswaarde / jaarkosten | D10: =IF(SUM(D6:D8)=0,"",D11-D6-D7-D8) ->  | F10: =IF(D10="","",D10*(E10+E9)) -> 
D11: 100.0%
B12: NIEUW TARIEF | C12: =IF(AND(C5=0,F12=0),"",C5*(1+F12)) ->  | D12: PRIJSINDEX: | F12: =SUM(F6:F10) -> 0.0%
B14: Berekenen van de arbeidskostenindex:
B15: Soort dienstverband: | C15: aandeel in % | D15: Kosten index | E15: Totaal index
B16: * vast | E16: =IF(C16="","",C16*D16) -> 
B17: * vast + obf | E17: =IF(C17="","",C17*D17) -> 
B18: * los | E18: =IF(C18="","",C18*D18) -> 
B19: TOTAAL | C19: =SUM(C16:C18) -> 0.0% | E19: =SUM(E16:E18) -> 0.0%
C22: TOELICHTING
B23: Aandeel in de kosten | C23: De systematiek voor de berekening van de index is als volgt: 1) Bereken het aandeel arbeidskosten in het tarief Als tarief € 50 bedraagt en de arbeidskosten is € 25 / uur dan is het aandeel 50 %. 2) Bereken zo ook de aandeel voor brandstof 3) Ingeval van meegeleverde hulpstoffen (touw bij persen bijvoorbeeld), kan ook dit ingevuld worden. 4) Het kostenaandeel voor prijs machine of vervangingswaarde is het resterende deel; dus 100 % minus de som van de eerste drie
B24: Kostenindex | C24: Vul hierin de kostenstijging van het afgelopen jaar.
B25: Prijs index | C25: De totaal index wordt berekend door het kostenaandeel maal de index. Het kostenaandeel in kosten is dus de wegingsfactor.
B26: Arbeidskostenindex | C26: In deze tabel kan aan de hand van de verhouding vast, vast met overbrugging (OBF) en los dienstverband de prijsindex berekend worden. De kostenindex kan namelijk per dienstverband varieren door primiewijzigingen.
B27: =B10 -> Vervangingswaarde / jaarkosten | C27: Op grond van de vervangingswaarde worden de jaarkosten berekend in onze berekeningssystematiek. Kortom, het uitgangspunt is dat alle kostenstijging gelijke tred houden met de kostenstijging van de machines. Er wordt alleen nog als extra gevraagd om de wijziging in het rentepercentage op te geven. De totale kostenindex voor de machine wordt vastgesteld door de opgegeven index bij de "prijs machines" + de wijziging in rentepercentage.

Sheet Toelichting
A2: Klik op de blauw onderlijnde woorden om terug te keren naar het rekenmodel | B2: Toelichting berekening model | C2: Normen | D2: Eigen notitie
B3: Bij het werkblad "Werktuig":
A4: Vervangingswaarde | B4: De waarde van de machine als je deze vervangt door een gelijksoortige machine. (Indien de machine door een tweede hands machine wordt vervangen is het dus de tweede handswaarde.) | C4: Afhankelijk van de soort en benutting van de machine..
A5: Restwaarde | B5: De waarde van de machine aan het einde van de afschrijvingstermijn. U kunt dit als percentage van de vervangingswaarde opgeven of als vast bedrag.
A6: Gebruiksuren | B6: De (te verwachte) in rekening te brengen uren per jaar. Let op: dit zijn niet de draaiuren van de machine.
A7: Afschrijvingen | B7: Het afschrijvingsbedrag kan berekend worden door het afschrijvingspercentage in te geven of de levensduur in jaren. Het afschrijvingsbedrag wordt als volgt berekent: - percentage: afschrijvingspercentage * vervangingswaarde - levensduur: (vervangingswaarde - restwaarde) / levensduur
A8: Rente | B8: Voer hier het rentepercentage in. De rentekosten wordt berekend door dit percentage maal de gemiddelde waarde van de machine. In formule is de berekening als volgt: Rente % *((Vervangingswaarde + restwaarde)/2) | C8: Algemeen uitgangspunt: de rente voor een 5-jarige lening inclusief toeslag. Voor 2006 bedraagt dit 5,5 % (bron: Rabo )
A9: Reparatie en onderhoud | B9: Vul hierin de reparatie en onderhoudskosten. U kunt kiezen voor een percentage of een vast bedrag in . Het is een gemiddeld bedrag over meerdere jaren. Houd dus ook rekening met incidenteel onderhoud eens in de zoveel jaar. De kosten worden primair berekend op basis van het percentage. Zorg daarom dat dit veld leeg is als u een vast bedrag in de berekening wilt opnemen. | C9: Gemiddeld 4,9 % van de aanschafwaarde; variatie agrarische / grondverzet 5,2 % - 4,1 %. Bron: Bedrijfs-economisch onderzoek (BEO) boekjaar 2005
A10: arbeid eigen onderhoud | B10: Er wordt in het algemeen ook door eigen mensen reparatie en (dagelijks) onderhoud aan de machine verricht. Denk alleen maar aan het doorsmeren en schoonmaken van een machine. De kosten worden primair berekend op basis van het percentage. Zorg daarom dat dit veld leeg is als u een vast bedrag in de berekening wilt opnemen. (Indien u de tijd aan eigen reparatie reeds in de arbeidskosten hebt opgenomen, hoeft dat uiteraard hier niet. Echter, het is wel verstandig deze tijd aan de juiste machine toe te rekenen.
A11: Onroerend goed | B11: Kosten van onroerend goed zijn alle kosten aan gebouwen en erf, inclusief verzekeringen en afschrijvingen. U kunt dit als percentage van de vervangingswaarde of in euro's invoeren. Indien het percentage is ingevuld, wordt dit bedrag genomen. Zorg dat het veld percentage leeg is u het bedrag in wilt opnemen in de berekening. | C11: Gemiddeld 1,6 % van de aanschafwaarde; variatie 1,4% - 2,4%; bron BEO boekjaar 2005
A12: Verzekering | B12: Kosten van de directe verzekeringskosten van de betreffende machine. De kosten van bedrijfsverzekeringen vallen onder algemene kosten. U kunt dit als percentage van de vervangingswaarde of in euro's invoeren. Indien het percentage is ingevuld, wordt dit bedrag genomen. Zorg dat het veld percentage leeg is u het bedrag in euro's wilt opnemen in de berekening. | C12: Gemiddeld 1,1 % van de aanschafwaarde; variatie 1,0% - 1,3%% bron BEO boekjaar 2005
A13: Algemene kosten | B13: Onder algemene kosten vallen de kosten voor auto, telefoon, administratie, porti, reclame contributies, abonnementen, elektra, gas, enz. U kunt dit als percentage van de vervangingswaarde of in euro's invoeren. De kosten worden primair berekend op basis van het percentage. Zorg daarom dat dit veld leeg is als u een vast bedrag in de berekening wilt opnemen. | C13: Gemiddeld 2,0 % van de aanschafwaarde; variatie 1,5% - 2,8 %; bron BEO boekjaar 2005
A14: Kosten per uur | B14: De totale kosten gedeeld door het aantal gebruiksuren.
A15: Bedrijfsrisico | B15: Bedrijfsrisico dient om de kosten voor onvoorziene omstandigheden zoals lagere benutting door extreme weersomstandigheden of een onverwachte snelle economische veroudering vanwege bijvoorbeeld politieke maatregelen. De kosten voor bedrijfsrisico worden als opslagpercentage ingevoerd. Ook de nog niet toegerekende kosten en de door u vereiste winst kunt in in dit percentage verwerken.
A16: Tarief trekker | B16: Indien u een tariefberekening hebt uitgevoerd voor de trekker in het werkblad trekker, dan wordt dit tarief hier opgenomen. In het blauwe vlak kunt u een eigen tarief invoeren.
A17: Optie om andere eenheid in te voeren. | B17: Onder eenheid wordt verstaan hectares, m3 (kuubs) m (strekkende meters enz. Als u bijvoorbeeld een hectaretarief wilt berekend, selecteert u "Ja" bij de vraag "andere eenheid?". Bij eenheid vult u in "ha." en bij capaciteit de capaciteit per uur. Let op dit kan per situatie verschillen. Vervolgens verschijnt het hectaretarief. U kunt ook de optie "mengtarief" selecteren bij de vraag "andere eenheid?" Er verschijnt vervolgens een voorstel voor het gedeelte dat u als uurtarief kan hanteren. Dit voorstel wordt berekend door de arbeidskosten en brandstof. Wilt u een ander bedrag, dan kunt u dat invoeren in het betreffende blauwe vlak.
A18: Index berekenen | B18: Via deze optie is het mogelijk om de prijswijziging ten opzichte van het afgelopen jaar te berekenen. Deze index kan bijvoorbeeld gehanteerd worden bij verhoging van reeds vastgestelde prijzen. De invloed van wijziging in de uitgangspunten voor bijvoorbeeld onderhoud, hanteren van een ander afschrijvingsregime blijven buiten beschouwing. De index van deze posten worden gerelateerd aan de vervangingswaarde. Met nadruk wijzen wij er wel op dat er kosten zijn die meer of minder stijgen dan de vervangingswaarde. Denk bijvoorbeeld aan de assurantiekosten. Als dit alles in de berekening mee te nemen, dient er voor zowel het voorgaande jaar en dit jaar een complete kostprijsberekening te worden gedaan. Vervolgens kunt u het huidige tarief (a) delen op die van vorig jaar(b). In formule ziet het er dan als volgt uit: (a / b) * 100% -1 = prijsindex
B19: Bij het werkblad "Trekker":
A20: Vermogen | B20: Hier kunt u het vermogen invullen in kW of in pk's. Indien u het bedrag in pk's opgeeft wordt dit automatisch omgerekend in kW's. 1 pk is 0,735 KW. Op basis van het vermogen kan eventueel het brandstofverbruik berekend worden.
A21: =A4 -> Vervangingswaarde | B21: De waarde van de machine als je deze vervangt door een gelijksoortige machine. (Indien de machine door een tweede hands machine wordt vervangen is het dus de tweede handswaarde.)
A22: Restwaarde | B22: De waarde van de machine aan het einde van de afschrijvingstermijn. U kunt dit als percentage van de vervangingswaarde opgeven of als vast bedrag.
A23: Gebruiksuren | B23: De (te verwachte) in rekening te brengen uren per jaar. Let op: dit zijn niet de draaiuren van de machine.
A24: Afschrijvingen | B24: Het afschrijvingsbedrag kan berekend worden door het afschrijvingspercentage in te geven of de levensduur in jaren. Het afschrijvingsbedrag wordt als volgt berekent: - percentage: afschrijvingspercentage * vervangingswaarde - levensduur: (vervangingswaarde - restwaarde) / levensduur
A25: Rente | B25: Voer hier het rentepercentage in. De rentekosten wordt berekend door dit percentage maal de gemiddelde waarde van de machine. In formule is de berekening als volgt: Rente % *((Vervangingswaarde + restwaarde)/2) | C25: =C8 -> Algemeen uitgangspunt: de rente voor een 5-jarige lening inclusief toeslag. Voor 2006 bedraagt dit 5,5 % (bron: Rabo )
A26: Reparatie en onderhoud | B26: Vul hierin de reparatie en onderhoudskosten. U kunt kiezen voor een percentage of een vast bedrag in . Het is een gemiddeld bedrag over meerdere jaren. Houd dus ook rekening met incidenteel onderhoud eens in de zoveel jaar. De kosten worden primair berekend op basis van het percentage. Zorg daarom dat dit veld leeg is als u een vast bedrag in de berekening wilt opnemen. | C26: =C9 -> Gemiddeld 4,9 % van de aanschafwaarde; variatie agrarische / grondverzet 5,2 % - 4,1 %. Bron: Bedrijfs-economisch onderzoek (BEO) boekjaar 2005
A27: arbeid eigen onderhoud | B27: Er wordt in het algemeen ook door eigen mensen reparatie en (dagelijks) onderhoud aan de machine verricht. Denk alleen maar aan het doorsmeren en schoonmaken van een machine. De kosten worden primair berekend op basis van het percentage. Zorg daarom dat dit veld leeg is als u een vast bedrag in de berekening wilt opnemen. (Indien u de tijd aan eigen reparatie reeds in de arbeidskosten hebt opgenomen, hoeft dat uiteraard hier niet. Echter, het is wel verstandig deze tijd aan de juiste machine toe te rekenen.
A28: Onroerend goed | B28: Kosten van onroerend goed zijn alle kosten aan gebouwen en erf, inclusief verzekeringen en afschrijvingen. U kunt dit als percentage van de vervangingswaarde of in euro's invoeren. Indien het percentage is ingevuld, wordt dit bedrag genomen. Zorg dat het veld percentage leeg is u het bedrag in wilt opnemen in de berekening. | C28: =C11 -> Gemiddeld 1,6 % van de aanschafwaarde; variatie 1,4% - 2,4%; bron BEO boekjaar 2005
A29: Verzekering | B29: Kosten van de directe verzekeringskosten van de betreffende machine. De kosten van bedrijfsverzekeringen vallen onder algemene kosten. U kunt dit als percentage van de vervangingswaarde of in euro's invoeren. Indien het percentage is ingevuld, wordt dit bedrag genomen. Zorg dat het veld percentage leeg is u het bedrag in euro's wilt opnemen in de berekening. | C29: =C12 -> Gemiddeld 1,1 % van de aanschafwaarde; variatie 1,0% - 1,3%% bron BEO boekjaar 2005
A30: Algemene kosten | B30: Onder algemene kosten vallen de kosten voor auto, telefoon, administratie, porti, reclame contributies, abonnementen, elektra, gas, enz. U kunt dit als percentage van de vervangingswaarde of in euro's invoeren. De kosten worden primair berekend op basis van het percentage. Zorg daarom dat dit veld leeg is als u een vast bedrag in de berekening wilt opnemen. | C30: =C13 -> Gemiddeld 2,0 % van de aanschafwaarde; variatie 1,5% - 2,8 %; bron BEO boekjaar 2005
A31: Kosten per uur | B31: De totale kosten gedeeld door het aantal gebruiksuren.
A32: Brandstof verbruik | B32: Het brandstofverbruik kunt u bepalen door zelf het aantal liters in te vullen of via een formule te laten berekenen. De formule voor de berekening brandstofverbruik is als volgt: (kW * belastingpercentage) /3,67) Het belastingpercentage is een correctie, omdat een motor nooit voor 100% belast wordt. Norm hiervoor is (bron IMAG): 2 wiel aangedreven trekker 60% 4 wiel aangedreven trekker 70 % zelfrijder 80% | C32: Gemiddelde brandstofprijs per liter rode gasolie bedroeg over het jaar 2005 68,44 eurocent
A33: Smeermiddelen | B33: De kosten van olie en smeermiddelen kan berekend worden via een toeslag op de brandstof van de machine. Dit percentage kunt u voor het eigen bedrijf berekenen door de totale kosten van olie en smeermiddelen per jaar te delen door de totale kosten van brandstof per jaar * 100%. | C33: Op basis van gegevens van enkele bedrijven bleek de toeslag gemiddeld op 10% te liggen.
A34: Arbeidskosten | B34: Arbeidskosten per uur kunt u berekenen op grond van uw totale loonkosten gedeeld door de effectieve uren (uren die u kunt doorbereken). Volgens de CAO zijn er met aftrek van vakantie- feest- en ATV dagen 1.603 beschikbare uren voor een vaste full time werknemer. Dit is inclusief ziekteverzuim en exclusief bijzonder verlof. Houd ook rekening met de uren die u direct aan onderhoud machines besteed. Deze uren dient u feitelijk direct aan de machine toe te rekenen. In dit model is er de mogelijkheid om direct de arbeidskosten eigen reparatie en onderhoud in te kunnen voeren. | C34: Bij een produktiviteit van 60 % en gemiddeld 200 overuren kost een vaste medewerker € 26,15 per uur
A35: Bedrijfsleidings-vergoeding | B35: Onder bedrijfsleiding wordt verstaan de arbeid nodig is voor organisatie, planning, acquisitie en administratie.
A36: =A15 -> Bedrijfsrisico | B36: =B15 -> Bedrijfsrisico dient om de kosten voor onvoorziene omstandigheden zoals lagere benutting door extreme weersomstandigheden of een onverwachte snelle economische veroudering vanwege bijvoorbeeld politieke maatregelen. De kosten voor bedrijfsrisico worden als opslagpercentage ingevoerd. Ook de nog niet toegerekende kosten en de door u vereiste winst kunt in in dit percentage verwerken.
A37: =A18 -> Index berekenen | B37: =B18 -> Via deze optie is het mogelijk om de prijswijziging ten opzichte van het afgelopen jaar te berekenen. Deze index kan bijvoorbeeld gehanteerd worden bij verhoging van reeds vastgestelde prijzen. De invloed van wijziging in de uitgangspunten voor bijvoorbeeld onderhoud, hanteren van een ander afschrijvingsregime blijven buiten beschouwing. De index van deze posten worden gerelateerd aan de vervangingswaarde. Met nadruk wijzen wij er wel op dat er kosten zijn die meer of minder stijgen dan de vervangingswaarde. Denk bijvoorbeeld aan de assurantiekosten. Als dit alles in de berekening mee te nemen, dient er voor zowel het voorgaande jaar en dit jaar een complete kostprijsberekening te worden gedaan. Vervolgens kunt u het huidige tarief (a) delen op die van vorig jaar(b). In formule ziet het er dan als volgt uit: (a / b) * 100% -1 = prijsindex
B38: Bij het werkblad "Zelfrijder":
A39: Vermogen | B39: =B20 -> Hier kunt u het vermogen invullen in kW of in pk's. Indien u het bedrag in pk's opgeeft wordt dit automatisch omgerekend in kW's. 1 pk is 0,735 KW. Op basis van het vermogen kan eventueel het brandstofverbruik berekend worden.
A40: =A4 -> Vervangingswaarde | B40: =B4 -> De waarde van de machine als je deze vervangt door een gelijksoortige machine. (Indien de machine door een tweede hands machine wordt vervangen is het dus de tweede handswaarde.) | C40: =C4 -> Afhankelijk van de soort en benutting van de machine..
A41: =A5 -> Restwaarde | B41: De waarde van de machine aan het einde van de afschrijvingstermijn. U kunt dit als percentage van de vervangingswaarde opgeven of als vast bedrag.
A42: Gebruiksuren | B42: De (te verwachte) in rekening te brengen uren per jaar. Let op: dit zijn niet de draaiuren van de machine.
A43: Afschrijvingen | B43: Het afschrijvingsbedrag kan berekend worden door het afschrijvingspercentage in te geven of de levensduur in jaren. Het afschrijvingsbedrag wordt als volgt berekent: - percentage: afschrijvingspercentage * vervangingswaarde - levensduur: (vervangingswaarde - restwaarde) / levensduur
A44: Rente | B44: Voer hier het rentepercentage in. De rentekosten wordt berekend door dit percentage maal de gemiddelde waarde van de machine. In formule is de berekening als volgt: Rente % *((Vervangingswaarde + restwaarde)/2) | C44: =C8 -> Algemeen uitgangspunt: de rente voor een 5-jarige lening inclusief toeslag. Voor 2006 bedraagt dit 5,5 % (bron: Rabo )
A45: Reparatie en onderhoud | B45: Vul hierin de reparatie en onderhoudskosten. U kunt kiezen voor een percentage of een vast bedrag in . Het is een gemiddeld bedrag over meerdere jaren. Houd dus ook rekening met incidenteel onderhoud eens in de zoveel jaar. De kosten worden primair berekend op basis van het percentage. Zorg daarom dat dit veld leeg is als u een vast bedrag in de berekening wilt opnemen. | C45: =C9 -> Gemiddeld 4,9 % van de aanschafwaarde; variatie agrarische / grondverzet 5,2 % - 4,1 %. Bron: Bedrijfs-economisch onderzoek (BEO) boekjaar 2005
A46: arbeid eigen onderhoud | B46: Er wordt in het algemeen ook door eigen mensen reparatie en (dagelijks) onderhoud aan de machine verricht. Denk alleen maar aan het doorsmeren en schoonmaken van een machine. De kosten worden primair berekend op basis van het percentage. Zorg daarom dat dit veld leeg is als u een vast bedrag in de berekening wilt opnemen. (Indien u de tijd aan eigen reparatie reeds in de arbeidskosten hebt opgenomen, hoeft dat uiteraard hier niet. Echter, het is wel verstandig deze tijd aan de juiste machine toe te rekenen.
A47: Onroerend goed | B47: Kosten van onroerend goed zijn alle kosten aan gebouwen en erf, inclusief verzekeringen en afschrijvingen. U kunt dit als percentage van de vervangingswaarde of in euro's invoeren. Indien het percentage is ingevuld, wordt dit bedrag genomen. Zorg dat het veld percentage leeg is u het bedrag in wilt opnemen in de berekening. | C47: =C11 -> Gemiddeld 1,6 % van de aanschafwaarde; variatie 1,4% - 2,4%; bron BEO boekjaar 2005
A48: Verzekering | B48: Kosten van de directe verzekeringskosten van de betreffende machine. De kosten van bedrijfsverzekeringen vallen onder algemene kosten. U kunt dit als percentage van de vervangingswaarde of in euro's invoeren. Indien het percentage is ingevuld, wordt dit bedrag genomen. Zorg dat het veld percentage leeg is u het bedrag in euro's wilt opnemen in de berekening. | C48: =C12 -> Gemiddeld 1,1 % van de aanschafwaarde; variatie 1,0% - 1,3%% bron BEO boekjaar 2005
A49: Algemene kosten | B49: Onder algemene kosten vallen de kosten voor auto, telefoon, administratie, porti, reclame contributies, abonnementen, elektra, gas, enz. U kunt dit als percentage van de vervangingswaarde of in euro's invoeren. De kosten worden primair berekend op basis van het percentage. Zorg daarom dat dit veld leeg is als u een vast bedrag in de berekening wilt opnemen. | C49: =C13 -> Gemiddeld 2,0 % van de aanschafwaarde; variatie 1,5% - 2,8 %; bron BEO boekjaar 2005
A50: =A31 -> Kosten per uur | B50: De totale kosten gedeeld door het aantal gebruiksuren.
A51: Brandstof verbruik | B51: Het brandstofverbruik kunt u bepalen door zelf het aantal liters in te vullen of via een formule te laten berekenen. De formule voor de berekening brandstofverbruik is als volgt: (kW * belastingpercentage) /3,67) Het belastingpercentage is een correctie, omdat een motor nooit voor 100% belast wordt. Norm hiervoor is (bron IMAG): 2 wiel aangedreven trekker 60% 4 wiel aangedreven trekker 70 % zelfrijder 80% | C51: =C32 -> Gemiddelde brandstofprijs per liter rode gasolie bedroeg over het jaar 2005 68,44 eurocent
A52: Smeermiddelen | B52: De kosten van olie en smeermiddelen kan berekend worden via een toeslag op de brandstof van de machine. Dit percentage kunt u voor het eigen bedrijf berekenen door de totale kosten van olie en smeermiddelen per jaar te delen door de totale kosten van brandstof per jaar * 100%. | C52: =C33 -> Op basis van gegevens van enkele bedrijven bleek de toeslag gemiddeld op 10% te liggen.
A53: Arbeidskosten | B53: Arbeidskosten per uur kunt u berekenen op grond van uw totale loonkosten gedeeld door de effectieve uren (uren die u kunt doorbereken). Volgens de CAO zijn er met aftrek van vakantie- feest- en ATV dagen 1.603 beschikbare uren voor een vaste full time werknemer. Dit is inclusief ziekteverzuim en exclusief bijzonder verlof. Houd ook rekening met de uren die u direct aan onderhoud machines besteed. Deze uren dient u feitelijk direct aan de machine toe te rekenen. In dit model is er de mogelijkheid om direct de arbeidskosten eigen reparatie en onderhoud in te kunnen voeren. | C53: =C34 -> Bij een produktiviteit van 60 % en gemiddeld 200 overuren kost een vaste medewerker € 26,15 per uur
A54: Bedrijfsleidings-vergoeding | B54: Onder bedrijfsleiding wordt verstaan de arbeid nodig is voor organisatie, planning, acquisitie en administratie.
A55: Bedrijfsrisico | B55: Bedrijfsrisico dient om de kosten voor onvoorziene omstandigheden zoals lagere benutting door extreme weersomstandigheden of een onverwachte snelle economische veroudering vanwege bijvoorbeeld politieke maatregelen. De kosten voor bedrijfsrisico worden als opslagpercentage ingevoerd. Ook de nog niet toegerekende kosten en de door u vereiste winst kunt in in dit percentage verwerken.
A56: =A17 -> Optie om andere eenheid in te voeren. | B56: =B17 -> Onder eenheid wordt verstaan hectares, m3 (kuubs) m (strekkende meters enz. Als u bijvoorbeeld een hectaretarief wilt berekend, selecteert u "Ja" bij de vraag "andere eenheid?". Bij eenheid vult u in "ha." en bij capaciteit de capaciteit per uur. Let op dit kan per situatie verschillen. Vervolgens verschijnt het hectaretarief. U kunt ook de optie "mengtarief" selecteren bij de vraag "andere eenheid?" Er verschijnt vervolgens een voorstel voor het gedeelte dat u als uurtarief kan hanteren. Dit voorstel wordt berekend door de arbeidskosten en brandstof. Wilt u een ander bedrag, dan kunt u dat invoeren in het betreffende blauwe vlak.
A57: =A37 -> Index berekenen | B57: =B37 -> Via deze optie is het mogelijk om de prijswijziging ten opzichte van het afgelopen jaar te berekenen. Deze index kan bijvoorbeeld gehanteerd worden bij verhoging van reeds vastgestelde prijzen. De invloed van wijziging in de uitgangspunten voor bijvoorbeeld onderhoud, hanteren van een ander afschrijvingsregime blijven buiten beschouwing. De index van deze posten worden gerelateerd aan de vervangingswaarde. Met nadruk wijzen wij er wel op dat er kosten zijn die meer of minder stijgen dan de vervangingswaarde. Denk bijvoorbeeld aan de assurantiekosten. Als dit alles in de berekening mee te nemen, dient er voor zowel het voorgaande jaar en dit jaar een complete kostprijsberekening te worden gedaan. Vervolgens kunt u het huidige tarief (a) delen op die van vorig jaar(b). In formule ziet het er dan als volgt uit: (a / b) * 100% -1 = prijsindex

Sheet onderhoudspercentage
A1: Bepaling van het leeftijdsafhankelijke onderhoudspercentage
A3: Uitgangspunt is dat op 2/3 van de levensduur 50% van de onderhoudskosten zijn gemaakt.
B4: (zie kwin veehouderij)
A5: Berekening | B5: COj = {LVD x P/(GU x LVD)d} x (GU x GJ)d
A6: waarin: | B6: COj = cumulatief onderhoudspercentage van de vervangingswaarde in jaar j
B7: (j ligt tussen 0 en LVD)
B8: LVD = totale levensduur in jaren
B9: P = gemiddelde onderhoudskostenpercentage
B10: GU = aantal gebruiksuren per jaar
B11: GJ = aantal gebruiksjaren
B12: d = exponent
F16: Cumulatieve | G16: % onderhoud in
D17: leeftijd | E17: Gebruiksjaar | F17: % onderhoud | G17: het gebruiksjaar
B18: totale levensduur in jaren | C18: 12 | D18: 1 | E18: =IF(D18>$C$18,0,D18) -> 1 | F18: =(($C$18*$C$19)/POWER(($C$20*$C$18),$C$21))*POWER(($C$20*E18),$C$21) -> 0.77% | G18: =F18 -> 0.77%
B19: onderhoudspercentage | C19: 4.50% | D19: =D18+1 -> 2 | E19: 2 | F19: 2.52% | G19: =IF((F19-F18)>0,F19-F18,0) -> 1.75%
B20: gebruiksuren per jaar | C20: 100 | D20: =D19+1 -> 3 | E20: 3 | F20: 5.05% | G20: =IF((F20-F19)>0,F20-F19,0) -> 2.52%
A21: d | B21: exponent | C21: 1.709511291 | D21: 4 | E21: 4 | F21: 8.26% | G21: 3.21%
D22: 5 | E22: 5 | F22: 12.09% | G22: 3.83%
D23: 6 | E23: 6 | F23: 16.51% | G23: 4.42%
D24: 7 | E24: 7 | F24: 21.49% | G24: 4.98%
D25: 8 | E25: 8 | F25: 27.00% | G25: 5.51%
D26: 9 | E26: 9 | F26: 33.02% | G26: 6.02%
D27: 10 | E27: 10 | F27: 39.54% | G27: 6.52%
D28: 11 | E28: 11 | F28: 46.54% | G28: 7.00%
D29: 12 | E29: 12 | F29: 54.00% | G29: 7.46%
D30: 13 | E30: 0 | F30: 0.00% | G30: 0.00%
D31: 14 | E31: 0 | F31: 0.00% | G31: 0.00%
D32: 15 | E32: 0 | F32: 0.00% | G32: 0.00%
D33: 16 | E33: 0 | F33: 0.00% | G33: 0.00%
D34: 17 | E34: 0 | F34: 0.00% | G34: 0.00%
D35: 18 | E35: 0 | F35: 0.00% | G35: 0.00%
D36: 19 | E36: 0 | F36: 0.00% | G36: 0.00%
D37: 20 | E37: 0 | F37: 0.00% | G37: 0.00%
B38: Totaal cumulatieve onderhoud aan het einde van de levensduur | G38: =SUM(G18:G37) -> 54.00%
